{"text_format":"1","workbook":"xlsx","n_sheets":2,"sheets":["SITUACIJA","SPECIFIKACIJA"],"not_rendered":{"charts":0,"images":1,"macros":1,"external_links":0,"defined_names":6,"comments":0,"pivot_tables":0},"unopened":[],"bounds":{"document_bytes":16777216,"sheet_cells":100000,"rows_first":2000,"rows_last":500,"rows_between":2000,"halvings":0,"cell_chars":16384,"cell_head_chars":4096},"cells_cut":0,"cells_raw":0,"read":"whole","date_system":"1900"}

{"sheet":"SITUACIJA","index":0,"n_rows":57,"n_cols":18,"rows_kept":57,"cut":false,"hidden":false,"merged":[[2,9,2,10],[0,9,0,10],[0,14,0,15],[1,4,1,6],[1,9,1,10],[1,14,1,15],[9,0,9,3],[3,9,3,10],[4,9,4,10],[4,0,4,3],[5,5,5,7],[5,9,5,10],[5,0,5,3],[10,6,10,7],[6,5,6,7],[6,9,6,10],[13,0,13,3],[13,6,13,7],[13,9,13,10],[8,5,8,7],[8,9,8,10],[8,0,8,3],[10,0,10,3],[6,0,6,3],[7,5,7,7],[7,9,7,10],[7,1,7,3],[9,5,9,7],[9,9,9,10],[22,1,22,6],[11,6,11,7],[11,9,11,10],[12,0,12,3],[12,6,12,7],[12,9,12,10],[14,0,14,3],[15,0,15,3],[17,2,17,6],[19,1,19,7],[21,1,21,6],[28,1,28,6],[29,1,29,6],[30,1,30,6],[27,9,27,15],[26,9,26,10],[26,14,26,15],[23,1,23,6],[24,1,24,6],[25,1,25,6],[26,1,26,6],[27,1,27,6],[31,1,31,6],[44,3,44,7],[45,1,45,7],[33,1,33,6],[34,1,34,6],[35,1,35,6],[36,1,36,6],[37,1,37,6],[38,1,38,6],[39,0,39,4],[32,0,32,4],[32,5,32,6],[39,5,39,6],[41,3,41,7],[42,1,42,7],[55,6,55,7],[56,6,56,7],[47,0,47,7],[48,0,48,7],[53,1,53,2],[53,6,53,7],[4,12,4,13],[24,9,24,10],[24,14,24,15],[25,9,25,10],[25,14,25,15],[10,9,10,10],[12,12,12,14]]}
["\n\n\n\nРЕПУБЛИКА СРБИЈА\nРЕПУБЛИЧКИ ГЕОДЕТСКИ ЗАВОД\nСлужба за катастар непокретности\nБрој: 955-49/2015ц\nTутин\nЊегошева 12\nТел/Фах 020/ 811- 038\n",null,null,null,null,null,null,null,800,"СИТУАЦИОНИ ПЛАН",null,null,"Кат Општина",null,"број предмета"]
[null,null,null,null,"Датум издавања спецификације:",null,null,{"$f":"TODAY()","v":"2018-11-13"},null,"KP",null,null,"Тутин",null,"955-86/2015",null,null,"Баћица"]
[null,null,null,null,null,null,null,null,null,"1378/1",null,null,null,null,null,null,null,"Бороштица"]
[null,null,null,null,null,null,"Место:","Тутин",null,"1378/19",null,null,"АГЕНЦИЈА",null,null,null,null,"Браћак"]
["РЕПУБЛИКА СРБИЈА",null,null,null,null,null,null,null,null,"1378/24",null,null,1,null,null,null,null,"Бујковиће"]
["РЕПУБЛИЧКИ ГЕОДЕТСКИ ЗАВОД",null,null,null,null,{"$f":"IF(M5=1,O21,IF(M5=2,J21,\"\"))","v":"ГЕО-ИНЖЕЊЕРИНГ ТУТИН"},null,null,null,"1378/25",null,null,null,null,null,null,null,"Веље Поље"]
["Служба за катастар непокретности Тутин",null,null,null,null,{"$f":"IF(F6=\"ГЕО-ИНЖЕЊЕРИНГ ТУТИН\",O22,IF(F6=\"ГЕОСИСТЕМ ТУТИН\",J22,\"\"))","v":"ул. Револуције бб."},null,null,null,null,null,null,null,null,null,null,null,"Весениће"]
["број:",{"$f":"O2","v":"955-86/2015"},null,null,null,"Тутин",null,null,null,null,null,null,null,null,null,null,null,"Глоговик"]
["Тутин",null,null,null,null,null,null,null,null,null,null,null,null,null,null,null,null,"Глухавица"]
["Његошева 12",null,null,null,null,null,null,null,null,null,null,null,null,null,null,null,null,"Гњила"]
["Тел/Фах 020/ 811- 038",null,null,null,null,"Матични број:",{"$f":"IF(F6=\"ГЕО-ИНЖЕЊЕРИНГ ТУТИН\",O24,IF(F6=\"ГЕОСИСТЕМ ТУТИН\",J24,\"\"))","v":55540667},null,null,null,null,null,null,null,null,null,null,"Годово"]
[null,null,null,null,null,"ПИБ:",{"$f":"IF(F6=\"ГЕО-ИНЖЕЊЕРИНГ ТУТИН\",O25,IF(F6=\"ГЕОСИСТЕМ ТУТИН\",J25,\"\"))","v":101347363},null,null,null,null,null,null,null,null,null,null,"Девреч"]
["Матични број: 07004966",null,null,null,null,"Жиро рачун:",{"$f":"IF(F6=\"ГЕО-ИНЖЕЊЕРИНГ ТУТИН\",O26,IF(F6=\"ГЕОСИСТЕМ ТУТИН\",J26,\"\"))","v":"205-55134-71"},null,null,null,null,null,null,null,null,null,null,"Делимеђе"]
["Регистарски број: 6192506236",null,null,null,null,"Банка:",{"$f":"IF(F6=\"ГЕО-ИНЖЕЊЕРИНГ ТУТИН\",O27,IF(F6=\"ГЕОСИСТЕМ ТУТИН\",J27,\"\"))","v":"Комерцијална банка"},null,null,null,null,null,null,null,null,null,null,"Детане"]
["Шифра делатности: 75110",null,null,null,null,null,null,null,null,"Σ=",{"$f":"12-(COUNTIF(J3:J14,\"\"))","v":4},null,null,null,null,null,null,"Добриња"]
["ПИБ: 100147152",null,null,null,null,null,null,null,null,null,null,null,null,null,null,null,null,"Добри Дуб"]
[null,null,null,null,null,null,null,null,null,null,null,null,null,null,null,null,null,"Драга"]
[null,null,"Спецификација бр. 155/15.",null,null,null,null,null,null,null,null,null,null,null,null,null,null,"Дубово"]
[null,null,null,null,null,null,null,null,null,null,null,null,null,null,null,null,null,"Ђерекаре"]
["На основу ",null,null,null,null,null,null,null,null,null,null,null,null,null,null,null,null,"Жирче"]
[null,null,null,null,null,null,null,null,null,"ГЕОСИСТЕМ ТУТИН",null,null,null,null,"ГЕО-ИНЖЕЊЕРИНГ ТУТИН",null,null,"Жупа"]
["Број","Опис накнада",null,null,null,null,null,"Износ у динарима",null,"ул. Пештерска бб.",null,null,null,null,"ул. Револуције бб.",null,null,"Западни Мојстир"]
[null,"Издавање X и Y координата за 3. тачке ",null,null,null,null,null,1164,null,"Тутин",null,null,null,null,"Тутин",null,null,"Источни Мојстир"]
[null,{"$f":"CONCATENATE(\"Копија сице за к.п. \",(IF(J3=\"\",\"\",(J3&\", \"))),(IF(J4=\"\",\"\",(J4&\", \"))),(IF(J5=\"\",\"\",(J5&\", \"))),(IF(J6=\"\",\"\",(J6&\", \"))),(IF(J7=\"\",\"\",(J7&\", \"))),(IF(J8=\"\",\"\",(J8&\", \"))),(IF(J9=\"\",\"\",(J9&\", \"))),(IF(J10=\"\",\"\",(J10&\", \"))),(IF(J11=\"\",\"\",(J11&\", \"))),(IF(J12=\"\",\"\",(J12&\", \"))),(IF(J13=\"\",\"\",(J13&\", \"))),(IF(J14=\"\",\"\",(J14&\", \"))),\"к.о. \", M2)","v":"Копија сице за к.п. 1378/1, 1378/19, 1378/24, 1378/25, к.о. Тутин"},null,null,null,null,null,{"$f":"K15*427","v":1708},null,55770042,null,null,"-",null,55540667,null,null,"Језгровиће"]
[null,"Висине за 3 познате тачке",null,null,null,null,null,387,null,107713615,null,null,null,null,101347363,null,null,"Јелиће"]
[null,{"$f":"IF(K15=\"\",\"\",\"Овера ситуационог плана\")","v":"Овера ситуационог плана"},null,null,null,null,null,{"$f":"IF(B26=\"\",\"\",I1)","v":800},null,"205-181054-29",null,null,null,null,"205-55134-71",null,null,"Јужни кочарник"]
[null,"(Такса обрачуната по  тар. бр.2 ,тачка 5 , подтачка 1, Правилника о висини таксе за пружање услуга Републичког геодетског завода",null,null,null,null,null,null,null,"Комерцијална банка",null,null,null,null,"Комерцијална банка",null,null,"Коваче"]
[null,"таксе за пружање услуга Републичког геодетског завода , СЛ. Гласник РС",null,null,null,null,null,null,null,null,null,null,null,null,null,null,null,"Кониче"]
[null,"бр. 29/15.)",null,null,null,null,null,null,null,null,null,null,null,null,null,null,null,"Лескова"]
[null,null,null,null,null,null,null,null,null,null,null,null,null,null,null,null,null,"Липица"]
[null,null,null,null,null,null,null,null,null,null,null,null,null,null,null,null,null,"Лукавица"]
[null,null,null,null,null,null,null,null,null,null,null,null,null,null,null,null,null,"Мелаје"]
[null,null,null,null,null,"Накнаде укупно:",null,{"$f":"SUM(H23:H32)","v":4059},null,null,null,null,null,null,null,null,null,"Митрова"]
["Број","Опис такси",null,null,null,null,null,"Износ у динарима",null,null,null,null,null,null,null,null,null,"Морани"]
[null,"Републичка административна такса на захтев",null,null,null,null,null,300,null,null,null,null,null,null,null,null,null,"Набоје"]
[null,"Такса утврђена по члани 1. Закона о РАТ.",null,null,null,null,null,null,null,null,null,null,null,null,null,null,null,"Намга"]
[null,null,null,null,null,null,null,null,null,null,null,null,null,null,null,null,null,"Орље"]
[null,null,null,null,null,null,null,null,null,null,null,null,null,null,null,null,null,"Острвица"]
[null,null,null,null,null,null,null,null,null,null,null,null,null,null,null,null,null,"Паљево"]
[null,null,null,null,null,"Таксе укупно:",null,300,null,null,null,null,null,null,null,null,null,"Покрвеник"]
[null,null,null,null,null,null,null,null,null,null,null,null,null,null,null,null,null,"Попе"]
[null,"Износ од",{"$f":"H33","v":4059},"динара уплатити на рачун Службе за катастар непокретности Тутин",null,null,null,null,null,null,null,null,null,null,null,null,null,"Пружањ"]
[null,"број 840-742323843-92 модел плаћања 97, позив на број  77104, ",null,null,null,null,null,null,null,null,null,null,null,null,null,null,null,"Радуховце"]
[null,null,null,null,null,null,null,null,null,null,null,null,null,null,null,null,null,"Радуша"]
[null,"Износ од",{"$f":"H40","v":300},"динара на име административне таксе уплатити на рачун Буџета Републике",null,null,null,null,null,null,null,null,null,null,null,null,null,"Режевиће"]
[null,"Србије број 840-742221843-57, модел плаћања 97,позив на број  77104",null,null,null,null,null,null,null,null,null,null,null,null,null,null,null,"Рибариће"]
[null,null,null,null,null,null,null,null,null,null,null,null,null,null,null,null,null,"Рудница"]
["По уплати таксе и доставе доказа о уплати предмет ће бити узет у рад.",null,null,null,null,null,null,null,null,null,null,null,null,null,null,null,null,"Саш"]
[null,null,null,null,null,null,null,null,null,null,null,null,null,null,null,null,null,"Суви До"]
[null,null,null,null,null,null,null,null,null,null,null,null,null,null,null,null,null,"Старчевиће"]
["плаћено","05.10.2015",null,null,null,null,null,null,null,null,null,null,null,null,null,null,null,"Тутин"]
["Начин плаћања: Вирмански",null,null,null,null,null,null,null,null,null,null,null,null,null,null,null,null,"Хараповиће"]
[null,null,null,null,null,null,null,null,null,null,null,null,null,null,null,null,null,"Чаровина"]
["Урадио:","Самир Малићевић",null,null,null,null,"НАЧЕЛНИК",null,null,null,null,null,null,null,null,null,null,"Црниш"]
[null,null,null,null,null,null,"Вучковић Дојчило дипл.инг.геод",null,null,null,null,null,null,null,null,null,null,"Чукоте"]
["Дана:",{"$f":"TODAY()","v":"2018-11-13"},null,null,null,null,null,null,null,null,null,null,null,null,null,null,null,"Шароње"]
[null,null,null,null,null,null,null,null,null,null,null,null,null,null,null,null,null,"Шпиљани"]

{"sheet":"SPECIFIKACIJA","index":1,"n_rows":58,"n_cols":22,"rows_kept":58,"cut":false,"hidden":false,"merged":[[0,9,0,10],[0,14,0,15],[1,4,1,6],[1,9,1,10],[1,14,2,15],[2,9,2,10],[4,0,4,3],[5,0,5,3],[5,5,5,7],[4,12,4,13],[4,9,4,10],[5,9,5,10],[6,9,6,10],[7,9,7,10],[6,5,6,7],[3,14,3,15],[4,14,5,15],[3,9,3,10],[7,0,7,3],[7,5,7,7],[8,1,8,3],[8,5,8,7],[6,0,6,3],[9,0,9,3],[9,5,9,7],[10,0,10,3],[10,6,10,7],[13,0,13,3],[13,6,13,7],[11,0,11,3],[11,6,11,7],[12,0,12,3],[42,1,42,7],[39,0,39,4],[37,1,37,6],[23,1,23,6],[19,1,19,7],[35,1,35,6],[33,1,33,6],[34,1,34,6],[45,1,45,7],[41,3,41,7],[14,0,14,3],[21,1,21,6],[22,1,22,6],[15,0,15,3],[38,1,38,6],[28,1,28,6],[44,3,44,7],[39,5,39,6],[30,1,30,6],[31,1,31,6],[32,0,32,4],[36,1,36,6],[32,5,32,6],[29,1,29,6],[56,6,56,7],[47,0,47,7],[48,0,48,7],[53,1,53,2],[53,6,53,7],[55,6,55,7],[8,9,8,10],[9,9,9,10],[10,9,10,10],[11,9,11,10],[24,9,24,10],[27,9,27,15],[24,1,24,6],[25,1,25,6],[25,9,25,10],[25,14,25,15],[24,14,24,15],[26,1,27,6],[17,2,17,6],[26,7,27,7],[6,14,6,15],[7,14,7,15],[7,21,8,21],[14,20,15,20],[14,21,15,21],[16,20,17,20],[16,21,17,21],[7,20,8,20],[12,12,12,14],[12,9,12,10],[13,9,13,10],[26,14,26,15],[12,6,12,7],[26,9,26,10]]}
["\n\n\n\nРЕПУБЛИКА СРБИЈА\nРЕПУБЛИЧКИ ГЕОДЕТСКИ ЗАВОД\nСлужба за катастар непокретности\nБрој: 955-49/2015ц\nTутин\nЊегошева 12\nТел/Фах 020/ 811- 038\n",null,null,null,null,null,null,null,800,"СИТУАЦИОНИ ПЛАН",null,null,"Кат Општина",null,null,null,null,null,955,null,"PO DOKUMENTU",5060]
[null,null,null,null,"Датум издавања спецификације:",null,null,{"$f":"TODAY()","v":"2018-11-13"},null,"KP",null,null,"Веље Поље",null,null,null,null,"Баћица",3,null,"GR PARCELA",4050]
[null,null,null,null,null,null,null,null,null,"549/1",null,null,null,null,null,null,null,"Бороштица",1,null,"JA. POVRSINA",2168]
[null,null,null,null,null,null,"Место:",null,null,null,null,null,"АГЕНЦИЈА",{"$f":"CONCATENATE(O5,\" - \",B9)","v":"467 - 952-02-7-052-589/2018"},"број спецификације",null,null,"Браћак",7,589,"VANGRADSKO",4050]
[null,null,null,null,null,null,null,null,null,null,null,null,1,null,467,null,null,"Бујковиће",20,null,"svaka sledeca",1520]
["РЕПУБЛИКА СРБИЈА",null,null,null,null,null,null,null,null,null,null,null,null,null,null,null,null,"Веље Поље","kladionic",null,"OBJEKAT",5570]
[null,null,null,null,null,null,null,null,null,null,null,null,"БР. ТАЧАКА",null,"датум иплатнице",null,null,"Весениће",null,null,"rusenje objekta",810]
[null,null,null,null,null,null,null,null,null,null,null,null,{"$f":"IF(K15=1,4,K15*3)","v":4},null,"2018-08-15",null,null,"Глоговик",null,null,"odredjivanje kucnog broja",4720]
["број:",{"$f":"IF(AND(T1=\"\",T2=\"\",T3=\"\",T4=\"\",T5=\"\"),\"\",IF(T1>0,CONCATENATE(\"955-052-\",T1,\"/2018\"),IF(T2>0,CONCATENATE(\"952-02-3-052-\",T2,\"/2018\"),IF(T3>0,CONCATENATE(\"952-02-1-052-\",T3,\"/2018\"),IF(T4>0,CONCATENATE(\"952-02-7-052-\",T4,\"/2018\"),IF(T5>0,CONCATENATE(\"952-02-20-052-\",T5,\"/2018\"),IF(T6>0,CONCATENATE(\"955-052-\",T6,\"/2018\"),\"\")))))))","v":"952-02-7-052-589/2018"},null,null,null,null,null,null,null,null,null,null,null,null,null,null,null,"Глухавица"]
[null,null,null,null,null,null,null,null,null,null,null,null,null,null,null,null,null,"Гњила",null,null,"posebni delovi objekta",4550]
[null,null,null,null,null,null,null,null,null,null,null,null,null,null,null,null,null,"Годово",null,null,"svaki sledeci",1520]
[null,null,null,null,null,null,null,null,null,null,null,null,null,null,null,null,null,"Девреч",null,null,"spajanje parc",2020]
[null,null,null,null,null,null,null,null,null,null,null,null,null,null,null,null,null,"Делимеђе",null,null,"dogradnja objekta",2530]
[null,null,null,null,null,null,null,null,null,null,null,null,null,null,null,null,null,"Детане",null,null,"pomocni objekti I graze",2530]
[null,null,null,null,null,null,null,null,null,"Σ=",{"$f":"12-(COUNTIF(J3:J14,\"\"))","v":1},null,null,null,null,null,null,"Добриња",null,null,"kartiranje voda do 50 m",2374]
[null,null,null,null,null,null,null,null,null,null,null,null,null,null,null,null,null,"Добри Дуб"]
[null,null,null,null,null,null,null,null,null,null,null,null,null,null,null,null,null,"Драга",null,null,"svaki metar preko 50m",26]
[null,null,{"$f":"CONCATENATE(\"Спецификација бр. \",O5,\"/18\")","v":"Спецификација бр. 467/18"},null,null,null,null,null,null,null,null,null,null,null,null,null,null,"Дубово"]
[null,null,null,null,null,null,null,null,null,null,null,null,null,null,null,null,null,"Дулебе",null,null,"kopija u DWG",1258]
["На основу ",null,null,null,null,null,null,null,null,null,null,null,null,null,null,null,null,"Ђерекаре",null,null,"kopija u TIFF",610]
[null,null,null,null,null,null,null,null,null,"ГЕОСИСТЕМ ТУТИН",null,null,null,null,"ГЕО-ИНЖЕЊЕРИНГ ТУТИН",null,null,"Жирче",null,null,"1 tacka",400]
["Број","Опис накнада",null,null,null,null,null,"Износ у динарима",null,"ул. Пештерска бб.",null,null,null,null,"ул. Револуције бб.",null,null,"Жупа",null,null,"1 visina tacke",130]
[null,null,null,null,null,null,null,{"$f":"K15*V23","v":440},null,"Тутин",null,null,null,null,"Тутин",null,null,"Западни Мојстир",null,null,"skica",440]
[null,{"$f":"IF(T6>0,\"\",CONCATENATE(\"Издавање X и Y координата за 3. тачке \"))","v":"Издавање X и Y координата за 3. тачке "},null,null,null,null,null,{"$f":"IF(T6>0,\"\",3*V21)","v":1200},null,55770042,null,null,"-",null,55540667,null,null,"Источни Мојстир",null,null,"granicna tacka",70]
[null,{"$f":"IF(OR(T1>0,T3>0),CONCATENATE(\"број граничних тачака: \",M8),\"\")","v":""},null,null,null,null,null,{"$f":"IF(B25=\"\",\"\",M8*V24)","v":""},null,107713615,null,null,null,null,101347363,null,null,"Језгровиће",null,null,"RAT",310]
[null,{"$f":"IF(T1>0,CONCATENATE(\"Висине за 3 познате тачке\"),\"\")","v":""},null,null,null,null,null,{"$f":"IF(B26=\"\",\"\",3*V22)","v":""},null,"205-52296-49",null,null,null,null,"205-55134-71",null,null,"Јелиће"]
[null,"(Такса обрачуната по  тар. бр.2 ,тачка 5 , подтачка 1, Правилника о висини таксе за пружање услуга Републичког геодетског завода СЛ. Гласник РС бр. 29/15.)",null,null,null,null,null,null,null,"Комерцијална банка",null,null,null,null,"Комерцијална банка",null,null,"Јужни кочарник"]
[null,null,null,null,null,null,null,null,null,null,null,null,null,null,null,null,null,"Коваче"]
[null,"(Такса обрачуната по  тар. Бр .215б ,став 1. тачке 1 и 2, Закона о РАТ-а",null,null,null,null,null,null,null,null,null,null,null,null,null,null,null,"Кониче"]
[null,null,null,null,null,null,null,null,null,null,null,null,null,null,null,null,null,"Лескова"]
[null,"Републичка административна такса на захтев",null,null,null,null,null,310,null,null,null,null,null,null,null,null,null,"Липица"]
[null,null,null,null,null,null,null,null,null,null,null,null,null,null,null,null,null,"Лукавица"]
[null,null,null,null,null,"Накнаде укупно:",null,{"$f":"SUM(H23:H31)","v":1950},null,null,null,null,null,null,null,null,null,"Мелаје"]
["Број","Опис такси",null,null,null,null,null,"Износ у динарима",null,null,null,null,null,null,null,null,null,"Митрова"]
[null,"Републичка административна такса на захтев",null,null,null,null,null,300,null,null,null,null,null,null,null,null,null,"Морани"]
[null,"Такса утврђена по члани 1. Закона о РАТ.",null,null,null,null,null,null,null,null,null,null,null,null,null,null,null,"Набоје"]
[null,null,null,null,null,null,null,null,null,null,null,null,null,null,null,null,null,"Намга"]
[null,null,null,null,null,null,null,null,null,null,null,null,null,null,null,null,null,"Орље"]
[null,null,null,null,null,null,null,null,null,null,null,null,null,null,null,null,null,"Острвица"]
[null,null,null,null,null,"Таксе укупно:",null,{"$f":"SUM(H35:H39)","v":300},null,null,null,null,null,null,null,null,null,"Паљево"]
[null,null,null,null,null,null,null,null,null,null,null,null,null,null,null,null,null,"Покрвеник"]
[null,"Износ од",{"$f":"H33","v":1950},"динара уплатити на рачун Службе за катастар непокретности Тутин",null,null,null,null,null,null,null,null,null,null,null,null,null,"Попе"]
[null,"број 840-742323843-92 модел плаћања 97, позив на број  77104, ",null,null,null,null,null,null,null,null,null,null,null,null,null,null,null,"Пружањ"]
[null,null,null,null,null,null,null,null,null,null,null,null,null,null,null,null,null,"Радуховце"]
[null,"Износ од",{"$f":"H33","v":1950},"динара на име административне таксе уплатити на рачун Буџета Републике",null,null,null,null,null,null,null,null,null,null,null,null,null,"Радуша"]
[null,"Србије број 840-742221843-57, модел плаћања 97,позив на број  8310440600",null,null,null,null,null,null,null,null,null,null,null,null,null,null,null,"Режевиће"]
[null,null,null,null,null,null,null,null,null,null,null,null,null,null,null,null,null,"Рибариће"]
["По уплати таксе и доставе доказа о уплати предмет ће бити узет у рад.",null,null,null,null,null,null,null,null,null,null,null,null,null,null,null,null,"Рудница"]
[null,null,null,null,null,null,null,null,null,null,null,null,null,null,null,null,null,"Саш"]
[null,null,null,null,null,null,null,null,null,null,null,null,null,null,null,null,null,"Старчевиће"]
["плаћено",{"$f":"O8","v":"2018-08-15"},null,null,null,null,null,null,null,null,null,null,null,null,null,null,null,"Суви До"]
["Начин плаћања: Вирмански",null,null,null,null,null,null,null,null,null,null,null,null,null,null,null,null,"Тутин"]
[null,null,null,null,null,null,null,null,null,null,null,null,null,null,null,null,null,"Хараповиће"]
["Урадио:",null,null,null,null,null,"НАЧЕЛНИК",null,null,null,null,null,null,null,null,null,null,"Чаровина"]
[null,null,null,null,null,null,null,null,null,null,null,null,null,null,null,null,null,"Црниш"]
["Дана:",{"$f":"TODAY()","v":"2018-11-13"},null,null,null,null,null,null,null,null,null,null,null,null,null,null,null,"Чукоте"]
[null,null,null,null,null,null,null,null,null,null,null,null,null,null,null,null,null,"Шароње"]
[null,null,null,null,null,null,null,null,null,null,null,null,null,null,null,null,null,"Шпиљани"]